Cogmind - Beta 15 @@@ ROGUE MODE // 2025.08.06 @ 20:52:02 Player: beans Result: Destroyed by H-66 Slayer with Heavy Assault Rifle Performance ------------- Evolutions (5) 2500 Regions Visited (13) 2600 Robots Destroyed (103) 515 Value Destroyed (3082) 3082 Prototype IDs (29) 580 Alien Tech Used (0) 0 Bonus (1188) 1188 TOTAL SCORE: 10465 Bonus ------- High Alert Combat Kills 366 Follower Combat Kills 60 Entered Garrisons 200 Entered DSFs 500 Aligned with FarCom 300 Friendly Fire -238 Cogmind --------- Core Integrity 0/1000 Matter 250/300 Energy 58/100 System Corruption 0% Temperature Cool (4) Movement Flying (37) Location -5/DSF Parts ------- > --- POWER (2) -------- (None) > --- PROPULSION (4) --- Field Propulsion Array Field Propulsion Array > --- UTILITY (6) ------ Visual Processing Unit Advanced Targeting Computer > --- WEAPON (5) ------- (None) > --- INVENTORY (5) ---- Relay Coupler [Brawler] (33) Mining Laser Peak State ------------ > --- POWER ------------ Micro Fission Core > --- PROPULSION ------- Potential Leg Potential Leg > --- UTILITY ---------- Large Storage Unit High-capacity Matter Pod > --- WEAPON ----------- Thermic Laser Cooled Particle Cannon Cooled Particle Cannon Heavy Plasma Cannon Magnetic Acceleration Cannon > --- INVENTORY -------- Gravmag System Gravmag System Gravmag System Gravmag System Visual Processing Unit Advanced Targeting Computer Relay Coupler [Brawler] Heavy Assault Rifle Mini Grenade Launcher Mining Laser [Rating: 55] Favorites ----------- Power Cooled Ion Engine Engine Cooled Ion Engine Power Core Micro Fission Core Propulsion Potential Leg Treads Improved Treads Leg Potential Leg Hover Unit Gravmag System Flight Unit Field Propulsion Array Utility High-capacity Matter Pod Storage High-capacity Matter Pod Processor Advanced Targeting Computer Weapon Cooled Particle Cannon Energy Gun Medium Laser Energy Cannon Cooled Particle Cannon Ballistic Gun Light Assault Rifle Ballistic Cannon Magnetic Acceleration Cannon Launcher Mini Grenade Launcher Build | -11 -10 -10 -9 -9 -9 -8 -8 -7 -7 -6 -6 -5 -5 ------- Run | Yrd Mat Min Mat Min Exi Min Mat Fac Gar Fac Ext Fac DSF Slots Evolved 10 | . . . 2 . . . 2 2 . 2 . 2 . Power 1 | . . . . . . . . 1 . . . . . Propulsion 2 | . . . . . . . . . . . . 2 . Utility 4 | . . . 1 . . . 1 1 . 1 . . . Weapon 3 | . . . 1 . . . 1 . . 1 . . . Parts Attached 42 | 5 6 . 6 . 2 2 5 1 . 2 2 . 11 Power 6 | 1 . . 2 . . . 2 . . . . . 1 Engine 5 | 1 . . 2 . . . 2 . . . . . . Core 1 | . . . . . . . . . . . . . 1 Reactor . | . . . . . . . . . . . . . . Propulsion 13 | 2 2 . . . 2 . . . . . . . 7 Treads 4 | 2 2 . . . . . . . . . . . . Leg 3 | . . . . . 2 . . . . . . . 1 Wheel . | . . . . . . . . . . . . . . Hover 4 | . . . . . . . . . . . . . 4 Flight 2 | . . . . . . . . . . . . . 2 Utility 6 | . 2 . 2 . . . . . . . . . 2 Device . | . . . . . . . . . . . . . . Storage 4 | . 2 . 2 . . . . . . . . . . Processor 2 | . . . . . . . . . . . . . 2 Hackware . | . . . . . . . . . . . . . . Protection . | . . . . . . . . . . . . . . Artifact . | . . . . . . . . . . . . . . Weapon 17 | 2 2 . 2 . . 2 3 1 . 2 2 . 1 Energy Gun 4 | 1 . . 2 . . . . . . 1 . . . Energy Cannon 4 | . . . . . . . 2 . . 1 1 . . Ballistic Gun 4 | 1 . . . . . 2 . . . . . . 1 Ballistic Cannon 1 | . . . . . . . . . . . 1 . . Launcher 4 | . 2 . . . . . 1 1 . . . . . Special Weapon . | . . . . . . . . . . . . . . Impact Weapon . | . . . . . . . . . . . . . . Slashing Weapon . | . . . . . . . . . . . . . . Piercing Weapon . | . . . . . . . . . . . . . . Special Melee Weapon . | . . . . . . . . . . . . . . Unidentified Prototypes 4 | . . . 3 . . . 1 . . . . . . Parts Lost 28 | . 2 . 2 . . . 6 . . . 3 . 15 Power 5 | . 1 . . . . . 2 . . . 1 . 1 Propulsion 6 | . . . . . . . . . . . . . 6 Utility 3 | . . . . . . . 2 . . . . . 1 Weapon 14 | . 1 . 2 . . . 2 . . . 2 . 7 Highest Loss Streak 13 | . 2 . 2 . . . 2 . . . 3 . 13 To Critical Strikes . | . . . . . . . . . . . . . . Average Backups 6 | . 2 3 3 4 3 3 5 9 9 10 11 10 8 Power . | . . . . 1 . . . . . . . . . Propulsion 1 | . . . . . . . 2 4 4 4 4 4 3 Utility 1 | . . 2 1 2 2 2 1 2 2 3 3 3 2 Weapon 2 | . 1 1 1 1 1 1 1 3 3 3 4 3 2 Tool/Special . | . . . . . . . . . . . . . . Unused Backups 4 | . . . . . . . 2 . . . . . 2 Power 1 | . . . . . . . 1 . . . . . . Propulsion . | . . . . . . . . . . . . . . Utility 1 | . . . . . . . . . . . . . 1 Weapon 2 | . . . . . . . 1 . . . . . 1 Tool/Special . | . . . . . . . . . . . . . . Average Slot Usage (%) 71 | . 66 71 79 77 81 94 82 67 69 64 65 52 41 Engine 5 | . 9 . 4 . 4 11 7 7 7 6 5 . . Treads 8 | . 21 28 22 22 12 . . . . . . . . Leg 9 | . . . . . 9 22 18 15 15 13 13 11 4 Storage 20 | . 6 14 32 33 33 33 28 15 15 13 13 11 9 Energy Gun 5 | . 14 14 10 11 11 3 . . . 1 6 5 2 Energy Cannon 7 | . . . . . . . 4 15 15 17 19 17 11 Ballistic Gun 6 | . 1 . 6 11 11 25 16 . . . . . . Launcher 6 | . 11 14 4 . . . 6 13 15 10 5 . . Peak Build Rating 55 | 5 7 7 15 10 29 29 40 42 43 51 51 49 55 Average Rating 28 | 3 4 7 10 10 18 28 33 41 42 47 50 49 35 On Entrance 26 | . 5 7 7 10 10 29 29 39 42 43 51 49 49 Naked Turns 6 | . . . . . . . . . . . . . 6 Heaviest Build 66 | 8 15 9 41 32 40 40 47 53 53 66 66 60 65 Greatest Support 60 | 40 46 46 46 46 60 60 60 60 60 60 60 60 60 Greatest Overweight (x) 7 | . . . . . . . . . . 1 1 . 7 Average Overweight (x) . | . . . . . . . . . . . . . . Largest Inventory Capacity 15 | 5 5 5 15 15 15 15 15 15 15 15 15 15 15 Average Capacity 13 | 5 5 5 14 15 15 15 15 15 15 15 15 15 13 Most Carried 12 | 2 5 4 4 4 6 5 10 10 10 11 12 10 11 Average Carried 6 | . 2 3 3 4 3 3 5 9 9 10 11 10 8 Final Capacity 15 | 5 5 5 15 15 15 15 15 15 15 15 15 15 5 Final Carried 11 | . 3 4 4 4 3 3 9 9 10 11 10 10 2 Class Distribution -------------------- 55% | Skirmisher 44% | Mutant Dominant Class ---------------- Mutant | -10/Materials Mutant | -10/Mines Mutant | -9/Materials Mutant | -9/Mines Mutant | -9/Exiles Skirmisher | -8/Mines Skirmisher | -8/Materials Skirmisher | -7/Factory Skirmisher | -7/Garrison Skirmisher | -6/Factory Skirmisher | -6/Extension Skirmisher | -5/Factory Skirmisher | -5/DSF Resources | -11 -10 -10 -9 -9 -9 -8 -8 -7 -7 -6 -6 -5 -5 ----------- Run | Yrd Mat Min Mat Min Exi Min Mat Fac Gar Fac Ext Fac DSF Matter Collected 2282 | 155 193 795 184 . . 81 532 60 159 . 22 . 101 Remotely . | . . . . . . . . . . . . . . Salvage Created 2405 | . 299 74 378 . . 173 741 60 234 . 171 . 275 Parts 148 | . 26 2 22 . . 12 52 2 9 . 8 . 15 Haulers Intercepted 5 | . 2 . 1 . . . 2 . . . . . . Recyclers Shooed 3 | . . . 1 . . 2 . . . . . . . Parts Field Recycled . | . . . . . . . . . . . . . . Retrieved Matter . | . . . . . . . . . . . . . . Parts Self-Destructed . | . . . . . . . . . . . . . . Prevented . | . . . . . . . . . . . . . . Kills | -11 -10 -10 -9 -9 -9 -8 -8 -7 -7 -6 -6 -5 -5 ------- Run | Yrd Mat Min Mat Min Exi Min Mat Fac Gar Fac Ext Fac DSF Combat Hostiles Destroyed 69 | . 9 4 6 . . 4 32 . 10 . . . 4 Guns 12 | . 1 1 3 . . 4 3 . . . . . . Cannons 8 | . . . . . . . 1 . 3 . . . 4 AOE 49 | . 8 3 3 . . . 28 . 7 . . . . Classes Destroyed 15 | . 8 . 2 . . . 2 . 1 . . . 2 Worker 4 | . 1 . . . . . 3 . . . . . . Builder 4 | . 1 . 1 . . . . 1 . . 1 . . Tunneler 4 | . 1 . . . . 1 2 . . . . . . Hauler 5 | . 2 . 1 . . . 2 . . . . . . Recycler 4 | . . . 1 . . 1 1 . . . 1 . . Mechanic 1 | . . . . . . . 1 . . . . . . Operator 3 | . 1 . 1 . . . 1 . . . . . . Watcher 8 | . 3 . 1 . . . 3 1 . . . . . Swarmer 26 | . 3 2 . . . 4 11 . 6 . . . . Grunt 27 | . 6 2 3 . . . 13 . 3 . . . . Brawler 2 | . . . . . . . 2 . . . . . . Sentry 9 | . . . 3 . . . 6 . . . . . . Specialist 3 | . . . . . . . . . . . . . 3 Programmer 1 | . . . . . . . . . 1 . . . . Heavy 1 | . . . . . . . . . . . . . 1 Thug 1 | . . . . . . . . . 1 . . . . Best Kill Streak 13 | . 3 2 6 . . 4 13 1 7 . 1 . 1 Combat Bots Only 7 | . 3 2 2 . . 4 6 . 7 . . . 1 Max Kills in Single Turn 3 | . 3 2 1 . . 2 3 1 2 . 1 . 1 Gunslinging 1 | . . . . . . 1 . . . . . . . Exploded 3 | . 3 2 1 . . . 3 . 1 . . . . Melee . | . . . . . . . . . . . . . . Uniques/NPCs Destroyed . | . . . . . . . . . . . . . . Combat | -11 -10 -10 -9 -9 -9 -8 -8 -7 -7 -6 -6 -5 -5 -------- Run | Yrd Mat Min Mat Min Exi Min Mat Fac Gar Fac Ext Fac DSF Hostile Shots Fired 550 | . 25 8 49 . . 19 75 . 17 . 69 . 288 Missed 197 | . 9 3 15 . . 5 27 . 5 . 32 . 101 Hits 353 | . 16 5 34 . . 14 48 . 12 . 37 . 187 Projectile 353 | . 16 5 34 . . 14 48 . 12 . 37 . 187 Critical Strikes 3 | . 1 . 1 . . . . . . . . . 1 Damage Taken 5843 | . 260 41 530 . . 103 845 . 284 . 906 . 2874 Core 1578 | . 36 6 138 . . 17 147 . 54 . 172 . 1008 Absorbed by Shields . | . . . . . . . . . . . . . . Core Remaining (%) 81 | 100 . 83 . . . 61 73 . 92 . 79 . . Volleys Fired 260 | . 22 4 35 . . 15 89 6 23 11 32 . 23 Largest 4 | . 2 2 2 . . 3 4 1 2 1 4 . 3 Hottest 224 | . 80 80 80 . . 76 180 36 180 90 194 . 224 Shots Fired 393 | . 42 8 58 . . 38 134 6 25 11 35 . 36 Gun 183 | . 25 4 48 . . 38 57 . . 7 . . 4 Cannon 94 | . . . . . . . 11 . 13 4 35 . 31 Launcher 116 | . 17 4 10 . . . 66 6 12 . . . 1 Special . | . . . . . . . . . . . . . . Kinetic 123 | . 3 . 24 . . 31 57 . . . 1 . 7 Thermal 154 | . 22 4 24 . . 7 11 . 13 11 34 . 28 Explosive 109 | . 17 4 10 . . . 66 . 11 . . . 1 Electromagnetic 7 | . . . . . . . . 6 1 . . . . Robot Hit Streak 12 | . 3 2 8 . . 8 8 8 12 . 2 . 10 Robot Miss Streak 6 | . 2 3 3 . . 6 4 1 2 . 2 . 2 Penetration Max . | . . . . . . . . . . . . . . Secondary Targets 2 | . . . . . . 2 . . . . . . . Max Gunslinging Chain 1 | . . . . . . 1 . . . . . . . Shots Hit Robots 135 | . 6 2 23 . . 17 47 1 13 . 4 . 22 Core Hits 175 | . 25 6 23 . . 9 83 2 15 . 2 . 10 Critical Kills . | . . . . . . . . . . . . . . Critical Parts Destroyed . | . . . . . . . . . . . . . . Critical Strikes 2 | . 1 . 1 . . . . . . . . . . Burn 2 | . 1 . 1 . . . . . . . . . . Melee Attacks . | . . . . . . . . . . . . . . Impact . | . . . . . . . . . . . . . . Slashing . | . . . . . . . . . . . . . . Piercing . | . . . . . . . . . . . . . . Sneak Attacks . | . . . . . . . . . . . . . . Combat Hostiles . | . . . . . . . . . . . . . . Follow-up Attacks . | . . . . . . . . . . . . . . Damage Inflicted 9254 | . 1311 254 614 . . 161 4172 146 1274 . 244 . 1078 Guns 855 | . 85 13 264 . . 161 270 . . . . . 62 Cannons 1655 | . . . . . . . 108 . 368 . 244 . 935 Explosions 6744 | . 1226 241 350 . . . 3794 146 906 . . . 81 Melee . | . . . . . . . . . . . . . . Ramming . | . . . . . . . . . . . . . . Kinetic 628 | . . . 116 . . 102 270 . . . 25 . 115 Thermal 2054 | . 154 13 148 . . 59 211 . 368 . 219 . 882 Explosive 6426 | . 1157 241 350 . . . 3691 . 906 . . . 81 Electromagnetic 146 | . . . . . . . . 146 . . . . . Impact . | . . . . . . . . . . . . . . Slashing . | . . . . . . . . . . . . . . Piercing . | . . . . . . . . . . . . . . Highest Corruption 6 | . . . . . . . 1 . . . 6 . . Average Corruption 3 | . . . . . . . 1 . . . 5 . . Corruption Purged . | . . . . . . . . . . . . . . Corruption Blocked . | . . . . . . . . . . . . . . Effects 2 | . . . . . . . 1 . . . 1 . . Message Errors 1 | . . . . . . . 1 . . . . . . Matter Fused 1 | . . . . . . . . . . . 1 . . Overload Shots 47 | . . . . . . . 6 . 7 . 10 . 24 Effects 4 | . . . . . . . . . 2 . . . 2 Energy Bleed 1 | . . . . . . . . . 1 . . . . Heat Surge 3 | . . . . . . . . . 1 . . . 2 Overflow Damage 321 | . 76 21 1 . . . 175 2 37 . . . 9 Projectiles 60 | . . . . . . . 14 . 37 . . . 9 Explosions 261 | . 76 21 1 . . . 161 2 . . . . . Melee . | . . . . . . . . . . . . . . Knockbacks . | . . . . . . . . . . . . . . Impact . | . . . . . . . . . . . . . . Kinetic . | . . . . . . . . . . . . . . Secondary . | . . . . . . . . . . . . . . Self-Inflicted Damage 210 | . 67 . 21 . . . 73 . 49 . . . . Shots 9 | . 1 . 1 . . . 5 . 2 . . . . Rammed . | . . . . . . . . . . . . . . Targets Rammed . | . . . . . . . . . . . . . . Kicked . | . . . . . . . . . . . . . . Crushed . | . . . . . . . . . . . . . . Highest Temperature 395 | . 106 6 350 . . 116 96 . 172 112 110 . 395 Average Temperature 47 | . 36 2 57 . . 42 26 . 64 47 29 . 124 Received Heat Transfer 1596 | . 108 6 171 . . . 279 . 45 . 66 . 921 Effects 1 | . . . 1 . . . . . . . . . . Energy Bleed 1 | . . . 1 . . . . . . . . . . Siege Activations . | . . . . . . . . . . . . . . Martial Activations . | . . . . . . . . . . . . . . Shielding Activations . | . . . . . . . . . . . . . . Robots Disrupted . | . . . . . . . . . . . . . . Combat Hostiles . | . . . . . . . . . . . . . . Robots Corrupted . | . . . . . . . . . . . . . . Combat Hostiles . | . . . . . . . . . . . . . . Parts Fried 1 | . . . . . . . . 1 . . . . . Impact Corruptions . | . . . . . . . . . . . . . . Robots Melted . | . . . . . . . . . . . . . . Combat Hostiles . | . . . . . . . . . . . . . . Parts Melted 5 | . 1 . . . . 1 . . 1 . . . 2 Heat Transferred 2660 | . 383 37 481 . . 148 200 . 337 . 237 . 837 Parts Sabotaged . | . . . . . . . . . . . . . . Parts Stolen . | . . . . . . . . . . . . . . Parts Stripped . | . . . . . . . . . . . . . . Power Chain Reactions . | . . . . . . . . . . . . . . Alert | -11 -10 -10 -9 -9 -9 -8 -8 -7 -7 -6 -6 -5 -5 ------- Run | Yrd Mat Min Mat Min Exi Min Mat Fac Gar Fac Ext Fac DSF Maximum Alert Level 3 | . 1 . . . . . 3 2 3 2 . . . Low Security (%) 63 | 100 72 100 100 100 . 100 32 . . . 100 100 100 Level 1 16 | . 27 . . . . . 12 . 36 94 . . . Level 2 7 | . . . . . . . 12 100 21 5 . . . Level 3 12 | . . . . . . . 41 . 41 . . . . Level 4 . | . . . . . . . . . . . . . . Level 5 . | . . . . . . . . . . . . . . High Security . | . . . . . . . . . . . . . . Max Security . | . . . . . . . . . . . . . . Peak Influence 1034 | . 263 156 129 24 . 80 1034 457 772 405 116 7 112 Initial 455 | . . 86 52 24 . . 15 455 312 405 116 7 8 Average 226 | . 106 96 86 2 . 54 506 445 555 322 31 7 57 Influence Increases 3133 | . 408 180 237 . . 100 1358 42 460 4 130 5 209 Destroy 0b10 Robot/C 1420 | . 180 120 120 . . 80 640 . 200 . . . 80 Destroy 0b10 Robot/NC 165 | . 45 . 25 . . 10 65 10 . . 10 . . Destroy Leader 306 | . 50 20 44 . . 10 150 2 20 . . . 10 Allied During Kill 9 | . . 8 . . . . . . . . 1 . . Successful Hack 9 | . . . . . . . 4 . . . . 5 . Disable Machine 300 | . 75 . . . . . 165 . 15 . 45 . . Anti-Garrison Action 150 | . . . . . . . . . 150 . . . . Destroy Structure 549 | . 58 17 48 . . . 319 . 75 4 14 . 14 Lose Combat Pursuer 225 | . . 15 . . . . 15 30 . . 60 . 105 Influence Decreases 3066 | . 185 267 310 63 . 60 398 595 135 537 354 8 154 Entered New Map 1467 | . . 137 84 39 . . 25 545 135 367 123 8 4 Time Decay 1305 | . 165 130 206 24 . 60 313 50 . 170 187 . . Lost Part 280 | . 20 . 20 . . . 60 . . . 30 . 150 Lost Ally 14 | . . . . . . . . . . . 14 . . Squads Dispatched 11 | . 2 . 1 . . . 3 1 . . 1 . 3 Investigation 3 | . 1 . . . . . 1 . . . 1 . . Extermination . | . . . . . . . . . . . . . . Reinforcement 8 | . 1 . 1 . . . 2 1 . . . . 3 Assault . | . . . . . . . . . . . . . . Garrison . | . . . . . . . . . . . . . . Intercept . | . . . . . . . . . . . . . . Searches Triggered . | . . . . . . . . . . . . . . Construction Impeded 1 | . . . . . . . . 1 . . . . . Haulers Reinforced . | . . . . . . . . . . . . . . Active Scanning Responses . | . . . . . . . . . . . . . . Cargo Convoy Interrupts . | . . . . . . . . . . . . . . Stealth | -11 -10 -10 -9 -9 -9 -8 -8 -7 -7 -6 -6 -5 -5 --------- Run | Yrd Mat Min Mat Min Exi Min Mat Fac Gar Fac Ext Fac DSF Distress Signals 2 | . . . 1 . . . . . . . 1 . . Communications Jammed . | . . . . . . . . . . . . . . Distress Signals . | . . . . . . . . . . . . . . Times Spotted 118 | . 13 7 8 . . 4 38 3 14 . 12 . 19 Peak Tracking Total 10 | . 3 1 2 . . 4 5 3 4 . 6 . 10 Tactical Retreats 8 | . . 1 . . . . 1 1 . . 1 . 4 Traps | -11 -10 -10 -9 -9 -9 -8 -8 -7 -7 -6 -6 -5 -5 ------- Run | Yrd Mat Min Mat Min Exi Min Mat Fac Gar Fac Ext Fac DSF Traps Triggered 14 | . 3 . . . . . 4 . . . 5 . 2 Indirectly . | . . . . . . . . . . . . . . Trap Hack Attempts . | . . . . . . . . . . . . . . Triggered . | . . . . . . . . . . . . . . Disarmed . | . . . . . . . . . . . . . . Reprogrammed . | . . . . . . . . . . . . . . Reused . | . . . . . . . . . . . . . . Traps Extracted . | . . . . . . . . . . . . . . Installed . | . . . . . . . . . . . . . . Triggered . | . . . . . . . . . . . . . . Machines | -11 -10 -10 -9 -9 -9 -8 -8 -7 -7 -6 -6 -5 -5 ---------- Run | Yrd Mat Min Mat Min Exi Min Mat Fac Gar Fac Ext Fac DSF Machines Disabled 23 | . 5 . . . . . 11 . 4 . 3 . . Max in Single Turn 3 | . 3 . . . . . 2 . 1 . 1 . . Garrison Access 1 | . . . . . . . 1 . . . . . . Garrison Relay 1 | . . . . . . . . . 1 . . . . Machines Repaired . | . . . . . . . . . . . . . . Machines Dismantled . | . . . . . . . . . . . . . . Machines Sabotaged . | . . . . . . . . . . . . . . Overloaded Fab Kills . | . . . . . . . . . . . . . . Hacking | -11 -10 -10 -9 -9 -9 -8 -8 -7 -7 -6 -6 -5 -5 --------- Run | Yrd Mat Min Mat Min Exi Min Mat Fac Gar Fac Ext Fac DSF Machines Accessed 9 | . . . 1 . 1 . 1 1 1 . 3 1 . Terminals 6 | . . . 1 . . . . . 1 . 3 1 . Fabricators . | . . . . . . . . . . . . . . Repair Stations . | . . . . . . . . . . . . . . Recycling Units . | . . . . . . . . . . . . . . Scanalyzers . | . . . . . . . . . . . . . . Garrison Access 2 | . . . . . . . 1 1 . . . . . Total Hacks 15 | . . . 3 . 1 . 2 2 2 . 4 1 . Successful 6 | . . . 1 . 1 . 2 1 . . . 1 . Failed 9 | . . . 2 . . . . 1 2 . 4 . . Catastrophic 3 | . . . . . . . . . 1 . 2 . . Database Lockouts . | . . . . . . . . . . . . . . Manual 1 | . . . . . 1 . . . . . . . . Terminals 10 | . . . 3 . . . . . 2 . 4 1 . Fabricators . | . . . . . . . . . . . . . . Repair Stations . | . . . . . . . . . . . . . . Recycling Units . | . . . . . . . . . . . . . . Scanalyzers . | . . . . . . . . . . . . . . Garrison Access 4 | . . . . . . . 2 2 . . . . . Terminal Hacks 3 | . . . 1 . 1 . . . . . . 1 . Prototype ID Bank 1 | . . . 1 . . . . . . . . . . Open DSF 1 | . . . . . . . . . . . . 1 . Proto ID Catalog 1 | . . . . . 1 . . . . . . . . Fabricator Hacks . | . . . . . . . . . . . . . . Repair Station Hacks . | . . . . . . . . . . . . . . Recycling Unit Hacks . | . . . . . . . . . . . . . . Scanalyzer . | . . . . . . . . . . . . . . Garrison Access Hacks 3 | . . . . . . . 2 1 . . . . . Unlock Access 2 | . . . . . . . 1 1 . . . . . Seal Access 1 | . . . . . . . 1 . . . . . . Unauthorized Hacks . | . . . . . . . . . . . . . . Terminals . | . . . . . . . . . . . . . . Fabricators . | . . . . . . . . . . . . . . Repair Stations . | . . . . . . . . . . . . . . Recycling Units . | . . . . . . . . . . . . . . Scanalyzers . | . . . . . . . . . . . . . . Garrison Access . | . . . . . . . . . . . . . . Data Cores Recovered 1 | . . . 1 . . . . . . . . . . Used . | . . . . . . . . . . . . . . Hacking Detections 6 | . . . 1 . . . . 1 1 . 2 1 . Full Trace Events 1 | . . . . . . . . . . . 1 . . Feedback Events . | . . . . . . . . . . . . . . Feedback Blocked . | . . . . . . . . . . . . . . Robot Schematics Acquired . | . . . . . . . . . . . . . . Robots Built . | . . . . . . . . . . . . . . Authchips . | . . . . . . . . . . . . . . Time . | . . . . . . . . . . . . . . Total Robot Build Rating . | . . . . . . . . . . . . . . Part Schematics Acquired . | . . . . . . . . . . . . . . Parts Built . | . . . . . . . . . . . . . . Authchips . | . . . . . . . . . . . . . . Time . | . . . . . . . . . . . . . . Total Part Build Rating . | . . . . . . . . . . . . . . Parts Repaired . | . . . . . . . . . . . . . . Time . | . . . . . . . . . . . . . . Parts Recycled . | . . . . . . . . . . . . . . Recycled Matter . | . . . . . . . . . . . . . . Retrieved Matter . | . . . . . . . . . . . . . . Retrieved Components . | . . . . . . . . . . . . . . Parts Scanalyzed . | . . . . . . . . . . . . . . Part Schematics Acquired . | . . . . . . . . . . . . . . Parts Damaged . | . . . . . . . . . . . . . . Bothacking | -11 -10 -10 -9 -9 -9 -8 -8 -7 -7 -6 -6 -5 -5 ------------ Run | Yrd Mat Min Mat Min Exi Min Mat Fac Gar Fac Ext Fac DSF Used RIF Installer . | . . . . . . . . . . . . . . Robots Hacked . | . . . . . . . . . . . . . . Non-combat . | . . . . . . . . . . . . . . Combat . | . . . . . . . . . . . . . . Robot Hacks Applied . | . . . . . . . . . . . . . . Relay Couplers Released 4 | . . . . . . . . . 4 . . . . Machine Destruction 4 | . . . . . . . . . 4 . . . . Fabnet Peak Effective % . | . . . . . . . . . . . . . . Robots Rewired . | . . . . . . . . . . . . . . Allies Hacked . | . . . . . . . . . . . . . . Hacks Repelled . | . . . . . . . . . . . . . . Allies | -11 -10 -10 -9 -9 -9 -8 -8 -7 -7 -6 -6 -5 -5 -------- Run | Yrd Mat Min Mat Min Exi Min Mat Fac Gar Fac Ext Fac DSF Total Allies 4 | . . 1 . . . . . . . . 3 . . Largest Group 3 | . . 1 . . . . . . . . 3 . . Highest-Rated Group 76 | . . 31 . . . . . . . . 76 . . Highest-Rated Ally 31 | . . 31 . . . . . . . . 31 . . Initial Warlord ECA Mod 6 | . . . . . . . . . . 2 2 1 1 Total Orders . | . . . . . . . . . . . . . . Ally Attacks 11 | . . 6 . . . . . . . . 5 . . Total Damage 205 | . . 82 . . . . . . . . 123 . . Kills 2 | . . 2 . . . . . . . . . . . Allies Corrupted . | . . . . . . . . . . . . . . Allies Melted . | . . . . . . . . . . . . . . Intel | -11 -10 -10 -9 -9 -9 -8 -8 -7 -7 -6 -6 -5 -5 ------- Run | Yrd Mat Min Mat Min Exi Min Mat Fac Gar Fac Ext Fac DSF Active Infowar (turns) 55 | . . . . . . . . . . . . . 55 Optics 55 | . . . . . . . . . . . . . 55 Robot Analysis Total . | . . . . . . . . . . . . . . Derelict Logs Recovered . | . . . . . . . . . . . . . . Drone Launches . | . . . . . . . . . . . . . . Drone Recoveries . | . . . . . . . . . . . . . . Exploration | -11 -10 -10 -9 -9 -9 -8 -8 -7 -7 -6 -6 -5 -5 ------------- Run | Yrd Mat Min Mat Min Exi Min Mat Fac Gar Fac Ext Fac DSF Turns Passed 4661 | 66 398 268 438 312 351 134 868 116 393 350 552 3 412 Spaces Moved 2874 | 50 197 149 196 196 290 100 657 113 251 215 271 3 186 Core 33 | 21 . . . . . . . . . . . . 12 Treads 889 | 29 197 149 196 196 122 . . . . . . . . Legs 1884 | . . . . . 168 100 657 113 251 215 271 3 106 Wheels . | . . . . . . . . . . . . . . Hover 63 | . . . . . . . . . . . . . 63 Flight 5 | . . . . . . . . . . . . . 5 Fastest Speed 37 | 50 160 160 160 160 45 45 90 90 90 90 90 90 37 Average Speed 123 | 113 160 160 160 160 113 88 90 90 90 132 159 90 140 Slowest Speed 400 | 160 160 160 160 160 160 90 90 90 90 170 170 90 400 Overloaded Moves 41 | . . . . . 38 3 . . . . . . . Propulsion Burnouts . | . . . . . . . . . . . . . . Robots Hopped 1 | . . . . . . . . . . . . . 1 Potential Cave-ins 13 | . . . . . . . . . . . 13 . . Cave-ins Triggered 2 | . . . . . . . . . . . 2 . . Exploration Rate (%) 38 | 3 56 38 29 42 62 43 67 4 37 6 41 . 74 Regions Visited 13 Branch Regions 5 Pre-discovered Areas . | . . . . . . . . . . . . . . Known Exits Taken 2 | . . . . . . . . 1 . . . 1 . Unknown Exits Taken 10 | 1 1 1 1 1 1 1 1 . . 1 1 . . Scrap Searched . | . . . . . . . . . . . . . . Spaces Dug 78 | . . . 15 . . . 38 . . 4 17 . 4 Terrain Destroyed 692 | . 67 19 59 . . . 421 . 91 4 20 . 11 Melee . | . . . . . . . . . . . . . . Projectile 39 | . . . . . . . 8 . . 4 20 . 7 AOE 653 | . 67 19 59 . . . 413 . 91 . . . 4 Terrain Rammed . | . . . . . . . . . . . . . . Walls Destroyed . | . . . . . . . . . . . . . . Machines Disabled . | . . . . . . . . . . . . . . Actions | -11 -10 -10 -9 -9 -9 -8 -8 -7 -7 -6 -6 -5 -5 --------- Run | Yrd Mat Min Mat Min Exi Min Mat Fac Gar Fac Ext Fac DSF Total 3634 | 59 239 171 268 195 311 119 826 121 392 269 358 3 303 Wait 366 | . . 18 23 . 15 . 58 . 118 40 28 . 66 Move 2861 | 49 196 148 195 195 289 99 656 113 250 214 270 3 184 Hop 1 | . . . . . . . . . . . . . 1 Pick Up 50 | 5 9 1 6 . 2 2 14 1 1 2 1 . 6 Fast Attach 1 | . 1 . . . . . . . . . . . . Attach 44 | 5 6 . 6 . 1 2 6 1 . 1 2 . 14 Detach 1 | . 1 . . . . . . . . . . . . Swap 6 | . 2 . 1 . 2 . . . . 1 . . . Drop 14 | . 2 . 2 . 2 1 3 . . . . . 4 Fire 260 | . 22 4 35 . . 15 89 6 23 11 32 . 23 Melee . | . . . . . . . . . . . . . . Ram . | . . . . . . . . . . . . . . Kick . | . . . . . . . . . . . . . . Crush . | . . . . . . . . . . . . . . Escape Stasis 30 | . . . . . . . . . . . 25 . 5 Rewire . | . . . . . . . . . . . . . . Trap . | . . . . . . . . . . . . . . Miscellaneous . | . . . . . . . . . . . . . . Route ------- -11/Scrapyard -10/Materials (discovered 3 exits: *Mat x2 / [*Min]) -10/Mines -9/Materials -9/Mines -9/Exiles -8/Mines -8/Materials (discovered 2 exits: *Fac x2) -7/Factory -7/Garrison -6/Factory -6/Extension -5/Factory -5/DSF History --------- Turn | Location | Event 4 | -11/Scrapyard | Discovered new exit (range 15) 67 | -11/Scrapyard | Entered Materials 222 | -10/Materials | Discovered new exit (range 13) 308 | -10/Materials | Build established: Mutant 359 | -10/Materials | Discovered new exit (range 11) 451 | -10/Materials | Discovered new exit (range 9) 465 | -10/Materials | Entered Mines 468 | -10/Mines | Received a Mining Laser from a helpful Derelict 679 | -10/Mines | Discovered new exit (range 10) 733 | -10/Mines | Entered Materials 733 | -9/Materials | Evolved 2 slots: Utility x1, Weapon x1 1158 | -9/Materials | Discovered new exit (range 7) 1171 | -9/Materials | Entered Mines 1212 | -9/Mines | Met a Derelict bent on vengeance 1475 | -9/Mines | Deemed a non-threat by the Exiles lab entrance 1475 | -9/Mines | Discovered new exit (range 5) 1483 | -9/Mines | Entered Exiles 1523 | -9/Exiles | Met 8R-AWN 1549 | -9/Exiles | Met EX-HEX 1602 | -9/Exiles | Met EX-BIN 1629 | -9/Exiles | Aligned with FarCom system 1631 | -9/Exiles | Given EX-Vault access code 1667 | -9/Exiles | Opened EX-Vault 1677 | -9/Exiles | Found Potential Leg 1680 | -9/Exiles | Found Potential Leg 1717 | -9/Exiles | Warned to stay clear of 0b10 Research branches 1742 | -9/Exiles | Met EX-DEC 1817 | -9/Exiles | Discovered new exit (range 11) 1834 | -9/Exiles | Left Exiles lab with Potential Leg 1834 | -9/Exiles | Entered Mines 1950 | -8/Mines | Discovered new exit (range 13) 1968 | -8/Mines | Entered Materials 1968 | -8/Materials | Evolved 2 slots: Utility x1, Weapon x1 1985 | -8/Materials | Identified exit to Garrison 2172 | -8/Materials | Build established: Skirmisher 2229 | -8/Materials | Discovered new exit (range 15) 2648 | -8/Materials | Discovered new exit (range 16) 2836 | -8/Materials | Entered Factory 2836 | -7/Factory | Evolved 2 slots: Power x1, Utility x1 2952 | -7/Factory | Identified exit to Garrison 2952 | -7/Factory | Entered Garrison 2952 | -7/Garrison | Warlord forces raided the area 3084 | -7/Garrison | Triggered checkpoint 3088 | -7/Garrison | Triggered checkpoint 3088 | -7/Garrison | Triggered checkpoint 3121 | -7/Garrison | Lost 4 allies 3145 | -7/Garrison | Destroyed 7 combat bots 3160 | -7/Garrison | Triggered checkpoint 3224 | -7/Garrison | Garrison Relay disabled 3274 | -7/Garrison | Warlord forces retreated 3337 | -7/Garrison | Discovered new exit (range 9) 3345 | -7/Garrison | Entered Factory 3345 | -6/Factory | Evolved 2 slots: Utility x1, Weapon x1 3683 | -6/Factory | Discovered new exit (range 8) 3695 | -6/Factory | Entered Extension 3941 | -6/Extension | Rescued a captive Derelict 3942 | -6/Extension | Rescued a captive Derelict 4083 | -6/Extension | Rescued a captive Derelict 4095 | -6/Extension | Spotted B-75 Beast 4141 | -6/Extension | Lost 3 allies 4197 | -6/Extension | Crushed by falling debris 4211 | -6/Extension | Crushed by falling debris 4232 | -6/Extension | Spotted B-75 Beast 4242 | -6/Extension | Lost 3 parts (1p2w) 4244 | -6/Extension | Discovered new exit (range 3) 4247 | -6/Extension | Entered Factory 4247 | -5/Factory | Evolved 2 slots: Propulsion x2 4250 | -5/Factory | Identified exit to DSF 4250 | -5/Factory | Entered DSF 4264 | -5/DSF | Additional patrols routed to DSF 4591 | -5/DSF | Core integrity fell below 50% 4608 | -5/DSF | Core integrity fell below 20% 4630 | -5/DSF | Lost 13 parts (1p5n1u6w) 4662 | -5/DSF | Destroyed by H-66 Slayer with Heavy Assault Rifle Last Messages --------------- Penetrated by Slug. Acquired 31 matter. Gravmag System destroyed. Hcp. Matter Pod destroyed. Dropped Lrg. Storage Unit. Acquired Med. Armored Exoskeleton. Penetrated by Slug. Slug penetrates Wall. Matter Repository disabled. C-30 ARC bursts open, deploying its payload. H-66 Slayer unfolds itself. Penetrated by Slug. Slug penetrates Wall. Acquired Field Propulsion Array. Dropped Med. Armored Exoskeleton. Slug penetrates A-15 Conveyor. Penetrated by Slug. Acquired Field Propulsion Array. Slug penetrates Wall. Penetrated by Slug. Map ----- +----------------------------------------------------+ | | | | | ?????????????????????????????????????????????? | | ?????????????????????????????????????????????? | | ?????????????????????????????????????????????? | | ??????????????????????????????????????##?????? | | ??????????????????????????????????????""?????? | | ???????????????????????###???????????#"#?????? | | ????????????????????####"####???????##"####??? | | ????????????????????#!! #########"""""#??? | | ????????????????????#!!% # #!!##""%""#??? | | ????????????????????# % h %""##"# | | ????????????????????# gg h h [! """""# | | ????????????????????### xg###!h!#!!## = ""###? | | ????????????????????### "##!!!#!!###! ###??? | | ????????????????????#== !!########## ##???? | | ????????????????????#== !!#???# #!! !#???? | | ????????????????????#== !!#???# ##!! !#???? | | ????????????????????### ##???# #### ##???? | | ????????????????????#== ! #???####!! #???? | | ????????????????????#== #??????#!! #???? | | ????????????????????#= !#???##?#!! #???? | | ????????????????????## h ######"#### ###??? | | ????????????????#!???# A ##===" ?# #??? | | ????????????#!!!#!!!##A !! ##===; ## #??? | | ??????#!! @ !%*h ==##?? | | ??????#!! !!! = "#?? | | ??????#!! % ==##?? | | ??????# ## #===##A ##!!!; ## % #??? | | ??????#?????# ??#===?## ###!!!# ;# #??? | | ????????????????###???# #?########## ###??? | | ??????????????????????! =????????# &#???? | | ??????????????????????! ==???????# &#???? | | ??????????????????????! ==#??????# ^ &#???? | | ??????????????????????# ;##??????### ##???? | | ??????????????????????? ???????#&& &#???? | | ??????????????????????? #??????#&& &#???? | | ??????????????????????? #???###### !##???? | | ??????????????????????? ### ??#&&#"# ###??? | | ??????????????????????# ### #&&##%[ ""###? | | ?????????????????? "" ! ! %""""# | | ?????????????????? "%%" ""##"# | | ????????????????????#" # # ##"""""#??? | | ????????????????????# ???#########"""""#??? | | ????????????????????#???????????????##"####??? | | ?????????????????????????????????????#"#?????? | | ?????????????????????????????????????#""?????? | | ??????????????????????????????????????##?????? | | ?????????????????????????????????????????????? | | ?????????????????????????????????????????????? | +----------------------------------------------------+ Best States ------------- Heat Dissipation 40 Energy Generation 15 Energy Capacity 280 Matter Stores 890 Matter Capacity 900 Sight Range 18 Terrain Scan Density 10 Evasion (%) 66 Targeting Accuracy 8 Recoil Reduction 2 Item Schematics ----------------- None Robot Schematics ------------------ None Fabricated ------------ Nothing Repaired ---------- Nothing Alien Tech Used ----------------- None Achievements -------------- None Challenges ------------ None Game ------ Seed DimensionalMiniBlaster Manual? 0 Play Time 00:47:00 Cumulative 82.8 hours Start 2025.08.06 @ 20:02:33 End 2025.08.06 @ 20:52:02 Sessions 1 Manual Loads 0 Difficulty Rogue Special Mode None Game No. 328 Rogue 328 Adventurer 0 Explorer 0 Win Type - Total 0 Types 0/0/0/0/0/0/0/0/0/0 Lore% 34 Gallery% 36 Achievement% 30 Wizard Run 0 Options --------- Layout 2 ASCII 0 Keyboard 0 Movement Mouse Keybinds 0 Fullscreen 2 Font 24/Smallcaps Map View 50x44 Zoom Use 0% Tactical HUD 0 Map Filters NONE Filters NONE Steam 1 RUN: 9916366f-8f04-4387-976b-1369bb7ddcae